[Event "St. Petersburg-ch Women 2021"]
[Site "St. Petersburg"]
[Date "2021.04.02"]
[Round "9.8"]
[White "Pankova, Julia"]
[Black "Murashova, Ekaterina"]
[Result "0-1"]
[ECO "B27"]
[WhiteElo "1874"]
[BlackElo "2207"]
[Annotator "ChessBase"]
[PlyCount "84"]
[EventDate "2021.03.25"]
[EventType "swiss"]
[EventCountry "RUS"]
[SourceTitle "playchess.com"]
[Source "ChessBase"]
[SourceQuality "1"]
[TimeControl "40/5400+30:1800+30"]

1. e4 {[%emt 0:00:00]} c5 {[%emt 0:00:00]} 2. Nf3 {[%emt 0:00:00]} g6 {[%emt 0:00:00]} 3. d4 {[%emt 0:00:00]} cxd4 {[%emt 0:00:00]} 4. Qxd4 {[%emt 0:00:01]} Nf6 {[%emt 0:00:00]} 5. e5 {[%emt 0:00:08]} Nc6 {[%emt 0:00:01]} 6. Qa4 {[%emt 0:00:05]} Nd5 {[%emt 0:00:19]} 7. Qe4 {[%emt 0:00:10]} Nb6 {[%emt 0:00:07]} 8. Nc3 {[%emt 0:00:23]} Bg7 {[%emt 0:01:12]} 9. Bf4 {[%emt 0:00:21]} d5 {[%emt 0:01:09]} 10. exd6 {[%emt 0:01:58]} O-O {[%emt 0:07:12]} 11. dxe7 {[%emt 0:14:51]} Nxe7 {[%emt 0:21:38]} 12. Rd1 {[%emt 0:08:16]} Bxc3+ {[%emt 0:06:00]} 13. bxc3 {[%emt 0:00:04]} Ned5 {[%emt 0:00:42]} 14. Be2 {[%emt 0:10:10]} Bf5 {[%emt 0:07:32]} 15. Qd4 {[%emt 0:01:16]} Nxf4 {[%emt 0:00:10]} 16. Qxf4 {[%emt 0:00:24]} Qe7 {[%emt 0:09:01]} 17. Nd4 {[%emt 0:03:05]} Rfe8 {[%emt 0:01:31]} 18. O-O {[%emt 0:00:50]} Bxc2 {[%emt 0:04:21]} 19. Rd2 {[%emt 0:04:47]} Ba4 {[%emt 0:03:43]} 20. Rd3 {[%emt 0:15:26]} Rac8 {[%emt 0:14:06]} 21. Qh6 {[%emt 0:19:47]} Qf8 {[%emt 0:04:58]} 22. Qh4 {[%emt 0:01:37]} Rc5 {[%emt 0:03:32]} 23. f4 {[%emt 0:06:02]} f5 {[%emt 0:02:40]} 24. g4 {[%emt 0:04:31]} Qe7 {[%emt 0:00:25]} 25. Qxe7 {[%emt 0:02:21]} Rxe7 {[%emt 0:00:01]} 26. gxf5 {[%emt 0:00:02]} gxf5 {[%emt 0:00:24]} 27. Rg3+ {[%emt 0:00:42]} Kf7 {[%emt 0:01:43]} 28. Bd3 {[%emt 0:00:41]} Bd7 {[%emt 0:00:25]} 29. Bc2 {[%emt 0:00:58]} Kf6 {[%emt 0:00:38]} 30. Bb3 {[%emt 0:02:08]} Ba4 {[%emt 0:06:45]} 31. Kg2 {[%emt 0:01:36]} Bxb3 {[%emt 0:00:41]} 32. axb3 {[%emt 0:00:08]} Nd5 {[%emt 0:00:08]} 33. Rff3 {[%emt 0:02:00]} Re4 {[%emt 0:00:27]} 34. Rg8 {[%emt 0:00:42]} Nxf4+ {[%emt 0:01:21]} 35. Kg3 {[%emt 0:00:59]} Ng6 {[%emt 0:01:51]} 36. Rb8 {[%emt 0:00:34]} f4+ {[%emt 0:00:21]} 37. Kf2 {[%emt 0:00:07]} Rc7 {[%emt 0:00:19]} 38. Nb5 {[%emt 0:00:44]} Rce7 {[%emt 0:00:13]} 39. Rd3 {[%emt 0:01:00]} Re2+ {[%emt 0:00:42]} 40. Kf3 {[%emt 0:00:00]} Rxh2 {[%emt 0:00:00]} 41. Rd6+ {[%emt 0:01:43]} Kg5 {[%emt 0:02:13]} 42. Rd5+ {[%emt 0:01:25]} Kh4 {[%emt 0:00:08]} 0-1